[Event "*** Titled Tuesday Blitz"]
[Site "Chess.com"]
[Date "2020.05.26"]
[Round "10"]
[White "Klaus1995"]
[Black "marszach123"]
[Result "0-1"]
[WhiteElo "1824"]
[BlackElo "2159"]
[TimeControl "180+1"]
[EndTime "12:01:54 PDT"]
[Termination "marszach123 won by checkmate"]

1. e4 {[%clk 0:03:00.9]} 1... c5 {[%clk 0:02:59.3]} 2. Nf3 {[%clk 0:02:59.6]}
2... d6 {[%clk 0:02:59.5]} 3. d4 {[%clk 0:03:00.1]} 3... cxd4 {[%clk 0:03:00.1]}
4. Nxd4 {[%clk 0:03:00.9]} 4... Nf6 {[%clk 0:03:00.6]} 5. Nc3 {[%clk 0:03:01.6]}
5... a6 {[%clk 0:03:01.2]} 6. Be3 {[%clk 0:03:02.1]} 6... e5 {[%clk 0:03:00.7]}
7. Nb3 {[%clk 0:03:01.2]} 7... Be6 {[%clk 0:03:00.9]} 8. Qd2 {[%clk 0:03:01.7]}
8... Nbd7 {[%clk 0:02:57.9]} 9. O-O-O {[%clk 0:03:00.2]} 9... Rc8 {[%clk
0:02:58]} 10. Kb1 {[%clk 0:03:00.6]} 10... Be7 {[%clk 0:02:55.8]} 11. f4 {[%clk
0:02:59.5]} 11... b5 {[%clk 0:02:44.9]} 12. Bd3 {[%clk 0:02:58.6]} 12... O-O
{[%clk 0:02:23.4]} 13. f5 {[%clk 0:02:54.1]} 13... Bc4 {[%clk 0:02:22.1]} 14. h3
{[%clk 0:02:50.8]} 14... b4 {[%clk 0:02:08.7]} 15. Ne2 {[%clk 0:02:45.2]} 15...
a5 {[%clk 0:02:00.1]} 16. g4 {[%clk 0:02:38.5]} 16... a4 {[%clk 0:01:57]} 17.
Nbc1 {[%clk 0:02:37.7]} 17... Bxd3 {[%clk 0:00:51.4]} 18. Qxd3 {[%clk
0:02:34.1]} 18... Nc5 {[%clk 0:00:41.8]} 19. Bxc5 {[%clk 0:02:32.8]} 19... Rxc5
{[%clk 0:00:38.5]} 20. g5 {[%clk 0:02:32.4]} 20... Nh5 {[%clk 0:00:29.4]} 21. h4
{[%clk 0:02:31.1]} 21... Qb6 {[%clk 0:00:26.1]} 22. Rhg1 {[%clk 0:02:17.5]}
22... Rfc8 {[%clk 0:00:24.7]} 23. f6 {[%clk 0:01:42.2]} 23... Bf8 {[%clk
0:00:23.9]} 24. Rd2 {[%clk 0:01:35]} 24... g6 {[%clk 0:00:16.9]} 25. Rg2 {[%clk
0:01:21.1]} 25... Rc4 {[%clk 0:00:14.9]} 26. Ng3 {[%clk 0:01:19.5]} 26... Nf4
{[%clk 0:00:13.9]} 27. Qf1 {[%clk 0:01:14.3]} 27... Nxg2 {[%clk 0:00:14]} 28.
Qxg2 {[%clk 0:01:15.2]} 28... Qe3 {[%clk 0:00:10.6]} 29. h5 {[%clk 0:01:12]}
29... Qxg5 {[%clk 0:00:08.5]} 30. hxg6 {[%clk 0:01:11.3]} 30... hxg6 {[%clk
0:00:07.4]} 31. Qf2 {[%clk 0:01:07.1]} 31... Bh6 {[%clk 0:00:06.1]} 32. Re2
{[%clk 0:01:06.4]} 32... Qxc1# {[%clk 0:00:04.8]} 0-1

[Event "*** Titled Tuesday Blitz"]
[Site "Chess.com"]
[Date "2020.05.26"]
[Round "10"]
[White "Quiet_Desperation"]
[Black "MarceloPlaya"]
[Result "1-0"]
[WhiteElo "2207"]
[BlackElo "2338"]
[TimeControl "180+1"]
[EndTime "12:01:55 PDT"]
[Termination "Quiet_Desperation won by resignation"]

1. e4 {[%clk 0:03:00.9]} 1... e6 {[%clk 0:02:59.4]} 2. d4 {[%clk 0:02:59.2]}
2... d5 {[%clk 0:02:57.4]} 3. Nc3 {[%clk 0:02:59.4]} 3... Bb4 {[%clk 0:02:56.7]}
4. e5 {[%clk 0:02:59.4]} 4... c5 {[%clk 0:02:56.2]} 5. Bd2 {[%clk 0:02:59.8]}
5... cxd4 {[%clk 0:02:53.4]} 6. Nb5 {[%clk 0:02:59.5]} 6... Bxd2+ {[%clk
0:02:53.1]} 7. Qxd2 {[%clk 0:03:00]} 7... Ne7 {[%clk 0:02:51.4]} 8. Nd6+ {[%clk
0:02:59.8]} 8... Kf8 {[%clk 0:02:51]} 9. Qf4 {[%clk 0:02:52.3]} 9... Nf5 {[%clk
0:02:46]} 10. Nxf5 {[%clk 0:02:52.2]} 10... exf5 {[%clk 0:02:45.6]} 11. Nf3
{[%clk 0:02:52.7]} 11... Nc6 {[%clk 0:02:40]} 12. O-O-O {[%clk 0:02:51.6]} 12...
Be6 {[%clk 0:02:37.1]} 13. Kb1 {[%clk 0:02:51.8]} 13... h6 {[%clk 0:02:32.7]}
14. h4 {[%clk 0:02:51.8]} 14... g6 {[%clk 0:02:31.7]} 15. Nxd4 {[%clk
0:02:40.3]} 15... Kg7 {[%clk 0:02:29.9]} 16. f3 {[%clk 0:02:31.5]} 16... Qc7
{[%clk 0:02:15.7]} 17. Nxc6 {[%clk 0:02:16.4]} 17... bxc6 {[%clk 0:02:15]} 18.
g4 {[%clk 0:02:16.2]} 18... c5 {[%clk 0:02:00]} 19. gxf5 {[%clk 0:02:12.3]}
19... Bxf5 {[%clk 0:01:58.6]} 20. Rxd5 {[%clk 0:02:06.9]} 20... Rad8 {[%clk
0:01:52.8]} 21. Rxd8 {[%clk 0:02:02.7]} 21... Rxd8 {[%clk 0:01:51.3]} 22. Bd3
{[%clk 0:02:03.1]} 22... Bxd3 {[%clk 0:01:43.8]} 23. cxd3 {[%clk 0:02:02.7]}
23... Rxd3 {[%clk 0:01:43.4]} 24. h5 {[%clk 0:01:56.9]} 24... Qd8 {[%clk
0:01:37.4]} 25. Rc1 {[%clk 0:01:44.6]} 25... Qg5 {[%clk 0:01:15.4]} 26. Qc4
{[%clk 0:01:21.3]} 26... Qf5 {[%clk 0:01:10.8]} 27. Ka1 {[%clk 0:01:16.5]} 27...
Rxf3 {[%clk 0:01:08.6]} 28. hxg6 {[%clk 0:01:13.7]} 28... fxg6 {[%clk
0:01:06.4]} 29. Qxc5 {[%clk 0:01:13.3]} 29... Rf1 {[%clk 0:01:04]} 30. Qxa7+
{[%clk 0:01:03.7]} 30... Qf7 {[%clk 0:01:03.5]} 31. Qxf7+ {[%clk 0:01:02.6]}
31... Rxf7 {[%clk 0:01:02.7]} 32. b4 {[%clk 0:01:01]} 32... g5 {[%clk
0:01:01.7]} 33. b5 {[%clk 0:00:59.9]} 33... g4 {[%clk 0:00:58]} 34. b6 {[%clk
0:00:59.4]} 34... g3 {[%clk 0:00:56.1]} 35. Rg1 {[%clk 0:00:52]} 35... Rb7
{[%clk 0:00:42.3]} 36. Rxg3+ {[%clk 0:00:50.3]} 36... Kf7 {[%clk 0:00:42.2]} 37.
Rb3 {[%clk 0:00:50]} 37... Ke6 {[%clk 0:00:40.9]} 38. a4 {[%clk 0:00:50.1]} 1-0

[Event "*** Titled Tuesday Blitz"]
[Site "Chess.com"]
[Date "2020.05.26"]
[Round "10"]
[White "SlavenPastar"]
[Black "lelya96"]
[Result "1-0"]
[WhiteElo "2391"]
[BlackElo "2263"]
[TimeControl "180+1"]
[EndTime "12:02:06 PDT"]
[Termination "SlavenPastar won by resignation"]

1. d4 {[%clk 0:02:51.7]} 1... Nf6 {[%clk 0:02:59.3]} 2. c4 {[%clk 0:02:51.9]}
2... e6 {[%clk 0:02:59.4]} 3. Nc3 {[%clk 0:02:52.4]} 3... Bb4 {[%clk 0:02:58.8]}
4. e3 {[%clk 0:02:53]} 4... b6 {[%clk 0:02:56.2]} 5. Bd3 {[%clk 0:02:52.3]} 5...
Bb7 {[%clk 0:02:54.5]} 6. f3 {[%clk 0:02:52.3]} 6... d5 {[%clk 0:02:51.9]} 7.
cxd5 {[%clk 0:02:51.4]} 7... exd5 {[%clk 0:02:49.6]} 8. Ne2 {[%clk 0:02:51.5]}
8... O-O {[%clk 0:02:49.4]} 9. O-O {[%clk 0:02:52]} 9... Re8 {[%clk 0:02:47.7]}
10. Qe1 {[%clk 0:02:51.1]} 10... c5 {[%clk 0:02:45.8]} 11. Qf2 {[%clk
0:02:51.2]} 11... cxd4 {[%clk 0:02:43]} 12. exd4 {[%clk 0:02:50.5]} 12... Nbd7
{[%clk 0:02:36.4]} 13. Bg5 {[%clk 0:02:49]} 13... h6 {[%clk 0:02:35.4]} 14. Bh4
{[%clk 0:02:41.2]} 14... Nf8 {[%clk 0:02:27.5]} 15. Rac1 {[%clk 0:02:40.2]}
15... Ne6 {[%clk 0:02:26.7]} 16. g4 {[%clk 0:02:35]} 16... Be7 {[%clk
0:02:19.6]} 17. Bb1 {[%clk 0:02:27.3]} 17... Rf8 {[%clk 0:02:08]} 18. Qe3 {[%clk
0:02:23.1]} 18... Nxg4 {[%clk 0:02:03.8]} 19. Qd3 {[%clk 0:02:13.6]} 19... g6
{[%clk 0:01:08.9]} 20. Bxe7 {[%clk 0:02:10.6]} 20... Qxe7 {[%clk 0:01:09.5]} 21.
fxg4 {[%clk 0:02:10.6]} 21... Qg5 {[%clk 0:01:09.4]} 22. Qg3 {[%clk 0:02:05.4]}
22... Ba6 {[%clk 0:01:05.2]} 23. h4 {[%clk 0:01:58]} 23... Qe7 {[%clk
0:00:49.9]} 24. Rfe1 {[%clk 0:01:37.6]} 24... Rfd8 {[%clk 0:00:42.8]} 25. Nf4
{[%clk 0:01:36.1]} 25... Qf6 {[%clk 0:00:38.7]} 26. Nxe6 {[%clk 0:01:34]} 26...
fxe6 {[%clk 0:00:37]} 27. Rcd1 {[%clk 0:01:22.2]} 27... Rf8 {[%clk 0:00:33.7]}
28. Bd3 {[%clk 0:01:14]} 28... Qxd4+ {[%clk 0:00:27.8]} 29. Kg2 {[%clk 0:01:10]}
29... Bxd3 {[%clk 0:00:19.4]} 30. Rxd3 {[%clk 0:01:10.9]} 30... Qf6 {[%clk
0:00:18]} 31. Rf3 {[%clk 0:01:05.4]} 31... Qxf3+ {[%clk 0:00:17.8]} 32. Qxf3
{[%clk 0:01:04.9]} 32... Rxf3 {[%clk 0:00:18.5]} 33. Kxf3 {[%clk 0:01:05.7]}
33... Rf8+ {[%clk 0:00:18.5]} 34. Kg3 {[%clk 0:01:00.7]} 34... Kf7 {[%clk
0:00:16.3]} 35. Rf1+ {[%clk 0:01:00.1]} 35... Ke7 {[%clk 0:00:16.9]} 36. Rxf8
{[%clk 0:01:00.7]} 36... Kxf8 {[%clk 0:00:17.7]} 37. Kf4 {[%clk 0:01:01.1]}
37... Ke7 {[%clk 0:00:18.6]} 38. Ke5 {[%clk 0:01:01.4]} 38... Kd7 {[%clk
0:00:18.4]} 39. Ne2 {[%clk 0:01:01.2]} 39... Ke7 {[%clk 0:00:18.4]} 40. Nd4
{[%clk 0:01:00.5]} 1-0

[Event "*** Titled Tuesday Blitz"]
[Site "Chess.com"]
[Date "2020.05.26"]
[Round "10"]
[White "IAgrest"]
[Black "CzechmVIII"]
[Result "0-1"]
[WhiteElo "2242"]
[BlackElo "2165"]
[TimeControl "180+1"]
[EndTime "12:02:07 PDT"]
[Termination "CzechmVIII won by resignation"]

1. e4 {[%clk 0:03:00.9]} 1... c5 {[%clk 0:02:59.5]} 2. Nf3 {[%clk 0:03:00.7]}
2... d6 {[%clk 0:02:59.7]} 3. d4 {[%clk 0:03:00.9]} 3... cxd4 {[%clk 0:03:00.6]}
4. Nxd4 {[%clk 0:03:01.6]} 4... Nf6 {[%clk 0:03:00.9]} 5. Nc3 {[%clk 0:03:02.3]}
5... g6 {[%clk 0:03:01.3]} 6. Be3 {[%clk 0:03:00.9]} 6... Bg7 {[%clk 0:03:01.4]}
7. f3 {[%clk 0:02:58.1]} 7... Nc6 {[%clk 0:03:00.9]} 8. Qd2 {[%clk 0:02:57.8]}
8... O-O {[%clk 0:03:01]} 9. Bc4 {[%clk 0:02:57.8]} 9... Bd7 {[%clk 0:03:00.1]}
10. Bb3 {[%clk 0:02:58]} 10... Rc8 {[%clk 0:02:53]} 11. h4 {[%clk 0:02:57]}
11... h5 {[%clk 0:02:52.1]} 12. O-O-O {[%clk 0:02:56.5]} 12... Ne5 {[%clk
0:02:50.6]} 13. g3 {[%clk 0:02:56.5]} 13... b5 {[%clk 0:02:32]} 14. g4 {[%clk
0:02:54.9]} 14... b4 {[%clk 0:02:18.8]} 15. Nce2 {[%clk 0:02:41]} 15... hxg4
{[%clk 0:02:03.3]} 16. h5 {[%clk 0:02:39.8]} 16... Nxh5 {[%clk 0:02:03.3]} 17.
Bh6 {[%clk 0:02:36.8]} 17... e6 {[%clk 0:01:42.6]} 18. fxg4 {[%clk 0:02:21.2]}
18... Nxg4 {[%clk 0:01:30.5]} 19. Bxg7 {[%clk 0:02:20.3]} 19... Kxg7 {[%clk
0:01:17.1]} 20. Rdg1 {[%clk 0:02:20.1]} 20... Nhf6 {[%clk 0:00:48.4]} 21. Ng3
{[%clk 0:02:03.2]} 21... Rh8 {[%clk 0:00:43.6]} 22. Rxh8 {[%clk 0:01:34.1]}
22... Qxh8 {[%clk 0:00:33.9]} 23. Rh1 {[%clk 0:01:33.5]} 23... Qf8 {[%clk
0:00:27.8]} 24. Qxb4 {[%clk 0:01:23.6]} 24... Qe7 {[%clk 0:00:23.2]} 25. a3
{[%clk 0:00:59]} 25... Nf2 {[%clk 0:00:22.1]} 26. Qe1 {[%clk 0:00:18.2]} 26...
Nd3+ {[%clk 0:00:19.1]} 0-1

[Event "*** Titled Tuesday Blitz"]
[Site "Chess.com"]
[Date "2020.05.26"]
[Round "10"]
[White "CraiggoryC"]
[Black "WiktoriaPOL"]
[Result "0-1"]
[WhiteElo "2076"]
[BlackElo "2008"]
[TimeControl "180+1"]
[EndTime "12:02:08 PDT"]
[Termination "WiktoriaPOL won on time"]

1. e4 {[%clk 0:03:00.9]} 1... c5 {[%clk 0:02:59.5]} 2. Nf3 {[%clk 0:03:00.3]}
2... d6 {[%clk 0:02:59.2]} 3. d4 {[%clk 0:03:00.6]} 3... cxd4 {[%clk 0:02:59.9]}
4. Nxd4 {[%clk 0:03:01.1]} 4... Nf6 {[%clk 0:03:00]} 5. Nc3 {[%clk 0:03:01]}
5... a6 {[%clk 0:03:00.2]} 6. f3 {[%clk 0:03:00.8]} 6... e5 {[%clk 0:02:59.6]}
7. Nb3 {[%clk 0:03:00.8]} 7... Be6 {[%clk 0:02:59.7]} 8. Be3 {[%clk 0:03:00.9]}
8... Nbd7 {[%clk 0:02:59.6]} 9. Qd2 {[%clk 0:03:00.6]} 9... Be7 {[%clk
0:02:58.7]} 10. O-O-O {[%clk 0:02:59.5]} 10... b5 {[%clk 0:02:58.4]} 11. g4
{[%clk 0:02:56.2]} 11... Nb6 {[%clk 0:02:57.7]} 12. Na5 {[%clk 0:02:21.3]} 12...
Qc7 {[%clk 0:02:33.2]} 13. g5 {[%clk 0:01:38.8]} 13... Nfd7 {[%clk 0:02:31.5]}
14. Nd5 {[%clk 0:01:30.5]} 14... Bxd5 {[%clk 0:02:23.9]} 15. exd5 {[%clk
0:01:30.6]} 15... O-O {[%clk 0:01:48.8]} 16. Nc6 {[%clk 0:01:20]} 16... Bd8
{[%clk 0:01:43.7]} 17. f4 {[%clk 0:00:59.3]} 17... exf4 {[%clk 0:01:32.9]} 18.
Bxf4 {[%clk 0:00:59]} 18... Rc8 {[%clk 0:01:28]} 19. Bg2 {[%clk 0:00:48.8]}
19... Nc4 {[%clk 0:01:21.7]} 20. Qc3 {[%clk 0:00:42.3]} 20... Ndb6 {[%clk
0:01:16.2]} 21. h4 {[%clk 0:00:24]} 21... Na4 {[%clk 0:01:13.3]} 22. Qg3 {[%clk
0:00:17]} 22... Naxb2 {[%clk 0:01:02.4]} 23. Bxd6 {[%clk 0:00:11.8]} 23... Nxd6
{[%clk 0:00:50.3]} 24. h5 {[%clk 0:00:09.2]} 24... Ndc4 {[%clk 0:00:46.3]} 25.
d6 {[%clk 0:00:06.5]} 25... Qd7 {[%clk 0:00:37.5]} 26. h6 {[%clk 0:00:04.7]}
26... g6 {[%clk 0:00:33.5]} 0-1

[Event "*** Titled Tuesday Blitz"]
[Site "Chess.com"]
[Date "2020.05.26"]
[Round "10"]
[White "Justinz"]
[Black "StephenDedalus83"]
[Result "1-0"]
[WhiteElo "2364"]
[BlackElo "2700"]
[TimeControl "180+1"]
[EndTime "12:02:16 PDT"]
[Termination "Justinz won by resignation"]

1. e4 {[%clk 0:02:46.7]} 1... c5 {[%clk 0:02:58.6]} 2. Nf3 {[%clk 0:02:46.7]}
2... Nc6 {[%clk 0:02:58.4]} 3. d4 {[%clk 0:02:46.5]} 3... cxd4 {[%clk
0:02:59.3]} 4. Nxd4 {[%clk 0:02:46.9]} 4... Qc7 {[%clk 0:02:59.9]} 5. Nc3 {[%clk
0:02:46.3]} 5... e6 {[%clk 0:03:00.4]} 6. Be2 {[%clk 0:02:44.9]} 6... a6 {[%clk
0:03:00.8]} 7. O-O {[%clk 0:02:41.7]} 7... Nf6 {[%clk 0:03:01.2]} 8. Be3 {[%clk
0:02:41.5]} 8... Be7 {[%clk 0:02:58.8]} 9. f4 {[%clk 0:02:40.2]} 9... d6 {[%clk
0:02:58.8]} 10. Qe1 {[%clk 0:02:39.4]} 10... O-O {[%clk 0:02:56.6]} 11. Qg3
{[%clk 0:02:38.9]} 11... Nxd4 {[%clk 0:02:54.1]} 12. Bxd4 {[%clk 0:02:38.8]}
12... b5 {[%clk 0:02:54.8]} 13. a3 {[%clk 0:02:38.3]} 13... Bb7 {[%clk
0:02:54.2]} 14. Bf3 {[%clk 0:02:38.4]} 14... Rad8 {[%clk 0:02:37.4]} 15. Rad1
{[%clk 0:02:32]} 15... Rfe8 {[%clk 0:02:30.6]} 16. Kh1 {[%clk 0:02:25.6]} 16...
g6 {[%clk 0:02:26.6]} 17. f5 {[%clk 0:02:08.3]} 17... e5 {[%clk 0:02:25.4]} 18.
Be3 {[%clk 0:02:05.8]} 18... Qc4 {[%clk 0:02:20.1]} 19. Bg5 {[%clk 0:01:38.8]}
19... Nxe4 {[%clk 0:01:49.5]} 20. Bxe4 {[%clk 0:01:36.5]} 20... Bxe4 {[%clk
0:01:49.3]} 21. Bxe7 {[%clk 0:01:27.6]} 21... Rxe7 {[%clk 0:01:49.1]} 22. f6
{[%clk 0:01:27.7]} 22... Re6 {[%clk 0:01:47.3]} 23. Qe3 {[%clk 0:01:27.3]} 23...
Bxc2 {[%clk 0:01:34.5]} 24. Rc1 {[%clk 0:01:15]} 24... Kh8 {[%clk 0:01:14.2]}
25. Qh6 {[%clk 0:01:00.3]} 25... Rg8 {[%clk 0:01:13.1]} 26. Rf3 {[%clk
0:01:00.4]} 26... g5 {[%clk 0:01:11.6]} 27. Rxc2 {[%clk 0:00:59]} 27... g4
{[%clk 0:01:10.8]} 28. Rff2 {[%clk 0:00:54.8]} 28... Qd3 {[%clk 0:01:08.2]} 29.
Rcd2 {[%clk 0:00:44.5]} 29... Qc4 {[%clk 0:01:06.9]} 30. Kg1 {[%clk 0:00:40.2]}
30... e4 {[%clk 0:01:06.1]} 31. Qe3 {[%clk 0:00:38.9]} 31... Rg6 {[%clk
0:01:03.3]} 32. g3 {[%clk 0:00:34.5]} 32... h6 {[%clk 0:00:53.6]} 33. Rd4 {[%clk
0:00:31.2]} 33... Qc6 {[%clk 0:00:51]} 34. Nd5 {[%clk 0:00:29.6]} 34... Qc5
{[%clk 0:00:46.5]} 35. Nf4 {[%clk 0:00:28.5]} 35... Rexf6 {[%clk 0:00:38.6]} 36.
Nxg6+ {[%clk 0:00:27.9]} 36... Rxg6 {[%clk 0:00:38.7]} 37. Rxe4 {[%clk
0:00:27.9]} 37... Qxe3 {[%clk 0:00:37.8]} 38. Rxe3 {[%clk 0:00:27.6]} 38... Kg7
{[%clk 0:00:37.9]} 39. Re7 {[%clk 0:00:27.5]} 1-0

[Event "*** Titled Tuesday Blitz"]
[Site "Chess.com"]
[Date "2020.05.26"]
[Round "10"]
[White "eljanov"]
[Black "VitaliyBernadskiy"]
[Result "0-1"]
[WhiteElo "2851"]
[BlackElo "2721"]
[TimeControl "180+1"]
[EndTime "12:02:24 PDT"]
[Termination "VitaliyBernadskiy won by resignation"]

1. Nf3 {[%clk 0:02:57.8]} 1... g6 {[%clk 0:02:54.4]} 2. d4 {[%clk 0:02:57.3]}
2... Bg7 {[%clk 0:02:54]} 3. c4 {[%clk 0:02:57.3]} 3... c5 {[%clk 0:02:49.4]} 4.
d5 {[%clk 0:02:56.9]} 4... b5 {[%clk 0:02:49.1]} 5. cxb5 {[%clk 0:02:56]} 5...
a6 {[%clk 0:02:49.1]} 6. bxa6 {[%clk 0:02:52.6]} 6... Bxa6 {[%clk 0:02:43.4]} 7.
Nc3 {[%clk 0:02:52.8]} 7... Nf6 {[%clk 0:02:40.4]} 8. e4 {[%clk 0:02:52.9]} 8...
Bxf1 {[%clk 0:02:30]} 9. Kxf1 {[%clk 0:02:53.8]} 9... O-O {[%clk 0:02:29.8]} 10.
g3 {[%clk 0:02:46.2]} 10... e6 {[%clk 0:02:29.9]} 11. Kg2 {[%clk 0:02:39.8]}
11... Na6 {[%clk 0:02:24.1]} 12. e5 {[%clk 0:02:28]} 12... Nxd5 {[%clk
0:01:50.7]} 13. Nxd5 {[%clk 0:02:27.3]} 13... exd5 {[%clk 0:01:51.6]} 14. Qxd5
{[%clk 0:02:27.4]} 14... Qb6 {[%clk 0:01:52.5]} 15. b3 {[%clk 0:01:45]} 15...
Nb4 {[%clk 0:01:49.8]} 16. Qd2 {[%clk 0:01:42.9]} 16... Qb7 {[%clk 0:01:46.6]}
17. Re1 {[%clk 0:01:38.4]} 17... d6 {[%clk 0:01:39.9]} 18. Bb2 {[%clk
0:01:33.5]} 18... dxe5 {[%clk 0:01:39.9]} 19. Bxe5 {[%clk 0:01:28.7]} 19... Rad8
{[%clk 0:01:37.2]} 20. Qe2 {[%clk 0:01:10.7]} 20... Bxe5 {[%clk 0:01:24.9]} 21.
Qxe5 {[%clk 0:01:07.6]} 21... Nd3 {[%clk 0:01:24.7]} 22. Qf6 {[%clk 0:01:00.1]}
22... Nxe1+ {[%clk 0:01:19.6]} 23. Rxe1 {[%clk 0:01:01]} 23... Rfe8 {[%clk
0:01:15.6]} 24. Rc1 {[%clk 0:00:51]} 24... Rd2 {[%clk 0:01:08.5]} 25. Rxc5
{[%clk 0:00:41.2]} 25... Ree2 {[%clk 0:01:07.9]} 26. Re5 {[%clk 0:00:26.8]}
26... Rxf2+ {[%clk 0:01:02]} 27. Kh3 {[%clk 0:00:27.2]} 27... Qd7+ {[%clk
0:00:25.2]} 28. g4 {[%clk 0:00:26.5]} 28... Rd3 {[%clk 0:00:23.3]} 29. Kh4
{[%clk 0:00:12.6]} 29... Rfxf3 {[%clk 0:00:19.1]} 0-1

[Event "*** Titled Tuesday Blitz"]
[Site "Chess.com"]
[Date "2020.05.26"]
[Round "10"]
[White "agrigo3"]
[Black "HouseOfDurin"]
[Result "1-0"]
[WhiteElo "2259"]
[BlackElo "2042"]
[TimeControl "180+1"]
[EndTime "12:02:25 PDT"]
[Termination "agrigo3 won on time"]

1. Nf3 {[%clk 0:02:56]} 1... c5 {[%clk 0:03:00]} 2. g3 {[%clk 0:02:55.8]} 2...
Nc6 {[%clk 0:03:00.5]} 3. Bg2 {[%clk 0:02:56.7]} 3... e5 {[%clk 0:03:00.5]} 4.
d3 {[%clk 0:02:56.1]} 4... g6 {[%clk 0:03:01.2]} 5. O-O {[%clk 0:02:56.3]} 5...
Bg7 {[%clk 0:03:01.2]} 6. e4 {[%clk 0:02:55.6]} 6... Nge7 {[%clk 0:03:01.6]} 7.
Nbd2 {[%clk 0:02:53.5]} 7... O-O {[%clk 0:03:02]} 8. Nc4 {[%clk 0:02:53.6]} 8...
d5 {[%clk 0:02:55]} 9. exd5 {[%clk 0:02:51]} 9... Nxd5 {[%clk 0:02:55.9]} 10.
Re1 {[%clk 0:02:49.6]} 10... f6 {[%clk 0:02:38.9]} 11. c3 {[%clk 0:02:42.6]}
11... b5 {[%clk 0:02:06.9]} 12. Ne3 {[%clk 0:02:41]} 12... Nde7 {[%clk
0:01:57.2]} 13. Qb3+ {[%clk 0:02:34.9]} 13... Kh8 {[%clk 0:01:56.2]} 14. Qxb5
{[%clk 0:02:32.5]} 14... Rb8 {[%clk 0:01:32.2]} 15. Qxc5 {[%clk 0:02:28.9]}
15... Qxd3 {[%clk 0:01:31.8]} 16. Rd1 {[%clk 0:01:58.2]} 16... Qe2 {[%clk
0:01:19.4]} 17. Qc4 {[%clk 0:01:49.7]} 17... Qxc4 {[%clk 0:01:04.9]} 18. Nxc4
{[%clk 0:01:48.9]} 18... Ba6 {[%clk 0:00:44.6]} 19. Bf1 {[%clk 0:01:47.8]} 19...
e4 {[%clk 0:00:31.9]} 20. Nd4 {[%clk 0:01:40.7]} 20... Rfd8 {[%clk 0:00:23.3]}
21. Be3 {[%clk 0:01:36.1]} 21... Bxc4 {[%clk 0:00:20.5]} 22. Bxc4 {[%clk
0:01:35.7]} 22... Rxb2 {[%clk 0:00:17.5]} 23. Ne6 {[%clk 0:01:32.4]} 23... Rxd1+
{[%clk 0:00:16.4]} 24. Rxd1 {[%clk 0:01:31.5]} 24... f5 {[%clk 0:00:15.6]} 25.
Nxg7 {[%clk 0:01:29.7]} 25... Kxg7 {[%clk 0:00:16]} 26. Rd7 {[%clk 0:01:25.3]}
26... Kf6 {[%clk 0:00:15.2]} 27. Rd6+ {[%clk 0:01:18.8]} 27... Kg7 {[%clk
0:00:14.9]} 28. Kg2 {[%clk 0:01:03.1]} 28... Rc2 {[%clk 0:00:11.6]} 29. Bb3
{[%clk 0:00:58.6]} 29... Rxc3 {[%clk 0:00:10.1]} 30. h4 {[%clk 0:00:48.1]} 30...
h6 {[%clk 0:00:09.3]} 31. Rd7 {[%clk 0:00:42.2]} 31... Kf6 {[%clk 0:00:07.5]}
32. Bxh6 {[%clk 0:00:41.5]} 32... Ne5 {[%clk 0:00:04.6]} 33. Bg5+ {[%clk
0:00:41]} 33... Kg7 {[%clk 0:00:01.7]} 34. Rxe7+ {[%clk 0:00:41.2]} 34... Kf8
{[%clk 0:00:01.7]} 35. Rxe5 {[%clk 0:00:41.1]} 1-0

[Event "*** Titled Tuesday Blitz"]
[Site "Chess.com"]
[Date "2020.05.26"]
[Round "10"]
[White "RaunakSadhwani2005"]
[Black "Spartakus1975"]
[Result "0-1"]
[WhiteElo "2827"]
[BlackElo "2709"]
[TimeControl "180+1"]
[EndTime "12:02:26 PDT"]
[Termination "Spartakus1975 won by resignation"]

1. e4 {[%clk 0:03:00.9]} 1... e6 {[%clk 0:02:59.4]} 2. d4 {[%clk 0:02:58.9]}
2... d5 {[%clk 0:02:58.5]} 3. Nc3 {[%clk 0:02:59.8]} 3... Nf6 {[%clk 0:02:56]}
4. e5 {[%clk 0:02:53.5]} 4... Nfd7 {[%clk 0:02:54.6]} 5. f4 {[%clk 0:02:51.9]}
5... c5 {[%clk 0:02:54.6]} 6. Nf3 {[%clk 0:02:51.2]} 6... Nc6 {[%clk 0:02:54.6]}
7. Be3 {[%clk 0:02:51.6]} 7... Be7 {[%clk 0:02:53.7]} 8. Qd2 {[%clk 0:02:45.9]}
8... O-O {[%clk 0:02:47.9]} 9. Be2 {[%clk 0:02:45.5]} 9... f6 {[%clk 0:02:45.9]}
10. exf6 {[%clk 0:02:40.2]} 10... Nxf6 {[%clk 0:02:44.8]} 11. dxc5 {[%clk
0:02:37.6]} 11... b6 {[%clk 0:02:25]} 12. Bb5 {[%clk 0:02:26.1]} 12... bxc5
{[%clk 0:01:51.6]} 13. Bxc6 {[%clk 0:02:24.3]} 13... Rb8 {[%clk 0:01:52.1]} 14.
Bf2 {[%clk 0:02:14.4]} 14... Ba6 {[%clk 0:01:35.3]} 15. a4 {[%clk 0:02:06.2]}
15... Rxb2 {[%clk 0:01:29.3]} 16. Bb5 {[%clk 0:01:57.9]} 16... Bxb5 {[%clk
0:01:28.2]} 17. axb5 {[%clk 0:01:55.1]} 17... d4 {[%clk 0:01:27.6]} 18. Ne2
{[%clk 0:01:53.2]} 18... Ne4 {[%clk 0:01:20]} 19. Qd3 {[%clk 0:01:46.3]} 19...
Nd6 {[%clk 0:01:15]} 20. O-O {[%clk 0:01:25.6]} 20... Bf6 {[%clk 0:01:15]} 21.
c4 {[%clk 0:01:13.9]} 21... dxc3 {[%clk 0:01:08.9]} 22. Bxc5 {[%clk 0:01:12.4]}
22... Nxb5 {[%clk 0:01:08.7]} 23. Qc4 {[%clk 0:00:40.2]} 23... Qd5 {[%clk
0:01:05.5]} 24. Qxd5 {[%clk 0:00:39.5]} 24... exd5 {[%clk 0:01:05.9]} 25. Bxf8
{[%clk 0:00:39.8]} 25... Rxe2 {[%clk 0:00:59.3]} 26. Bc5 {[%clk 0:00:32.8]}
26... d4 {[%clk 0:00:59.2]} 27. Ne5 {[%clk 0:00:25.7]} 27... h5 {[%clk
0:00:45.4]} 28. Ra5 {[%clk 0:00:23.7]} 28... a6 {[%clk 0:00:42.3]} 29. Rxa6
{[%clk 0:00:18.9]} 29... c2 {[%clk 0:00:41.1]} 30. Ra5 {[%clk 0:00:12.3]} 30...
Bxe5 {[%clk 0:00:40.4]} 31. Rxb5 {[%clk 0:00:12]} 31... d3 {[%clk 0:00:39.1]}
32. Ba3 {[%clk 0:00:09.2]} 32... Bd4+ {[%clk 0:00:36.1]} 33. Kh1 {[%clk
0:00:08]} 33... d2 {[%clk 0:00:36.6]} 0-1